fUST/lending_fUST_20240828
["ID","MTS","AMOUNT","RATE_DAILY","PERIOD"]
[336460588,1724848252670,-151.0,0.00021917,2]
[336460589,1724848252679,-134.42918254,0.00021917,2]
[336460590,1724848252708,-138.72948946,0.00021917,2]
[336460591,1724848252717,-231.64330142,0.00021917,2]
[336460592,1724848252961,-600.0,0.00013287,2]
[336460593,1724848252972,-600.0,0.00013553,2]
[336460594,1724848252982,-600.0,0.00013553,2]
[336460595,1724848252991,-268.35669858,0.00021917,2]
[336460596,1724848253002,-500.0,0.00021917,2]
[336460597,1724848253011,-121.84754236,0.00021917,2]
[336460598,1724848253023,-333.3986771,0.00021917,2]
[336460613,1724849230136,-182.109308,0.00011347,2]
[336460614,1724849230158,-124.88061511,0.00011409,2]
[336460615,1724849246109,-196.1377179,0.00011409,2]
[336460616,1724849246131,-254.12158803,0.00011621,2]
[336460617,1724849246171,-182.109308,0.00011642,2]
[336460618,1724849246202,-182.109308,0.00011938,2]
[336460619,1724849246227,-300.0,0.00012075,2]
[336460620,1724849246250,-4467.16167698,0.00012076,2]
[336460635,1724849432584,-8085.04819016,0.00011842,2]
[336460636,1724849432595,-2369.76253778,0.00012076,2]
[336460637,1724849432605,-1028.4227968,0.00012076,2]
[336460638,1724849432615,-6554.26046926,0.00012076,2]
[336460652,1724849439339,-620.18217766,0.00012076,2]
[336460688,1724849440803,-12812.4446752,0.00012076,2]
[336460690,1724849440813,-1730.9653785,0.00012163,2]
[336460692,1724849440823,-1400.43421124,0.00012356,2]
[336460694,1724849440833,-1767.66648832,0.00012356,2]
[336460696,1724849440842,-11063.12553358,0.00012551,2]
[336460698,1724849440851,-513.69602662,0.00012679,2]
[336460700,1724849440862,-899.54550214,0.00012782,2]
[336460702,1724849440871,-729.39083996,0.00012898,2]
[336460704,1724849440881,-2240.8429057,0.000129,2]
[336460706,1724849440890,-160.50654328,0.00012934,2]
[336460708,1724849440900,-252.39906694,0.00012934,2]
[336460709,1724849440909,-174.99644935,0.00012934,2]
[336460710,1724849440919,-254.84954226,0.00012934,2]
[336460711,1724849440928,-777.0011055,0.00012934,2]
[336460713,1724849440938,-666.07600313,0.00012934,2]
[336460714,1724849440948,-207.3478485,0.00012934,2]
[336460715,1724849440958,-186.73280361,0.00012934,2]
[336460716,1724849440968,-366.68045916,0.00012934,2]
[336460717,1724849440978,-156.15686865,0.00012934,2]
[336460718,1724849440987,-493.77204427,0.00012971,2]
[336460719,1724849440998,-156.99253925,0.00012985,2]
[336460720,1724849441008,-154.66746495,0.00012985,2]
[336460721,1724849441017,-154.66746495,0.00012985,2]
[336460722,1724849441026,-155.06390022,0.00012985,2]
[336460723,1724849441036,-296.13258418,0.00012985,2]
[336460724,1724849441045,-154.97264958,0.00012999,2]
[336460725,1724849441055,-863.27824545,0.00013,2]
[336460726,1724849441064,-416.73774875,0.00013051,2]
[336460727,1724849441073,-521.86780136,0.00013051,2]
[336460728,1724849441083,-811.78467002,0.00013333,2]
[336460729,1724849441093,-253.11762544,0.00013496,2]
[336460730,1724849441103,-751.97281741,0.00013515,2]
[336460731,1724849441114,-500.0,0.00013599,2]
[336460732,1724849441123,-1780.69207018,0.00013697,3]
[336460733,1724849441132,-947.018531,0.00013698,2]
[336460734,1724849441142,-3000.0,0.00013699,2]
[336460735,1724849441153,-242.93742619,0.00013792,2]
[336460736,1724849441163,-168.804,0.00014024,2]
[336460737,1724849441173,-600.0,0.00014084,2]
[336460738,1724849441184,-150.112233,0.000141,2]
[336460739,1724849441194,-740.75711,0.00014247,2]
[336460740,1724849441204,-508.627983,0.00014247,2]
[336460741,1724849441214,-500.0,0.00014315,2]
[336460742,1724849441223,-216.03856293,0.00014519,2]
[336460743,1724849441233,-271.77314275,0.00014637,2]
[336460744,1724849441244,-1863.7007515,0.00014977,2]
[336460745,1724849441253,-150.112233,0.00015,2]
[336460746,1724849441263,-954.12079214,0.00015,2]
[336460747,1724849441276,-500.0,0.00015069,2]
[336460748,1724849441289,-500.0,0.00015822,2]
[336460749,1724849441298,-150.112233,0.000159,2]
[336460750,1724849441308,-500.0,0.00016613,2]
[336460751,1724849441319,-150.112233,0.000168,2]
[336460752,1724849441328,-500.83878289,0.00017444,2]
[336460753,1724849441488,-150.112233,0.000177,2]
[336460754,1724849441498,-500.0,0.00018456,2]
[336460755,1724849441508,-500.0,0.00018472,2]
[336460756,1724849441518,-150.112233,0.000185,2]
[336460757,1724849441528,-500.0,0.0001855,2]
[336460758,1724849441538,-500.0,0.00018642,2]
[336460759,1724849441547,-788.521615,0.00018904,2]
[336460760,1724849441557,-500.0,0.00019015,2]
[336460761,1724849441567,-500.0,0.00019097,2]
[336460762,1724849441576,-199.300405,0.00019178,2]
[336460763,1724849441586,-251.0,0.00019178,2]
[336460764,1724849441595,-500.0,0.00019325,2]
[336460765,1724849441606,-500.0,0.00019349,2]
[336460766,1724849441615,-150.112233,0.000194,2]
[336460767,1724849441625,-500.0,0.00019575,2]
[336460768,1724849441635,-500.0,0.00019582,2]
[336460769,1724849441644,-500.0,0.00019656,2]
[336460770,1724849441654,-500.0,0.00019701,2]
[336460771,1724849441664,-500.0,0.00019894,2]
[336460772,1724849441675,-156.72438319,0.0002,2]
[336460773,1724849441684,-503.9921216,0.0002,2]
[336460774,1724849441694,-500.0,0.00020028,2]
[336460775,1724849441704,-503.69044996,0.000202,2]
[336460776,1724849441714,-500.0,0.00020218,2]
[336460777,1724849441723,-150.0,0.00020224,2]
[336460778,1724849441733,-522.0,0.00020224,2]
[336460779,1724849441743,-150.145,0.00020224,2]
[336460780,1724849441752,-500.0,0.00020275,2]
[336460781,1724849441761,-150.112233,0.000203,5]
[336460782,1724849441772,-500.0,0.00020303,2]
[336460783,1724849441782,-500.0,0.00020354,2]
[336460784,1724849441791,-500.0,0.00020534,2]
[336460785,1724849441801,-500.0,0.00020578,2]
[336460786,1724849441810,-740.75711,0.00020707,2]
[336460787,1724849441820,-508.627983,0.00020707,2]
[336460788,1724849441830,-1000.0,0.00021,21]
[336460789,1724849441839,-150.0,0.00021,2]
[336460790,1724849441849,-500.0,0.00021133,2]
[336460791,1724849441860,-150.112233,0.000212,4]
[336460792,1724849441870,-500.0,0.00021329,2]
[336460793,1724849441879,-500.0,0.00021339,2]
[336460794,1724849441889,-500.0,0.00021451,2]
[336460795,1724849441899,-4506.60630401,0.00021468,2]
[336460796,1724849441908,-500.0,0.00021574,2]
[336460797,1724849441919,-2000.0,0.00021576,2]
[336460798,1724849441929,-500.0,0.00021693,2]
[336460799,1724849441939,-240.36584317,0.00021693,2]
[336460800,1724849441948,-500.0,0.00021693,2]
[336460801,1724849441958,-500.0,0.00021693,2]
[336460802,1724849441968,-500.0,0.00021693,2]
[336460803,1724849441978,-500.0,0.00021693,2]
[336460804,1724849441988,-243.79363614,0.00021693,2]
[336460805,1724849441999,-500.0,0.00021693,2]
[336460806,1724849442008,-500.0,0.00021693,2]
[336460807,1724849442018,-500.0,0.00021693,2]
[336460808,1724849442028,-500.0,0.00021693,2]
[336460809,1724849442038,-124704.53204,0.00021694,3]
[336460810,1724849442049,-1543.54971852,0.00021708,2]
[336460811,1724849442059,-124704.53204,0.0002171,3]
[336460812,1724849442069,-39673.88072926,0.0002172,2]
[336460845,1724849443866,-1502.75,0.0002172,2]
[336460846,1724849443920,-5256.17095644,0.0002172,2]
[336460847,1724849443930,-465.00326584,0.00021722,2]
[336460848,1724849443941,-818.747697,0.00021726,2]
[336460849,1724849443950,-390.33975893,0.00021773,2]
[336460850,1724849443961,-500.0,0.00021773,2]
[336460851,1724849443972,-306.0,0.00021781,2]
[336460852,1724849443983,-233.3270153,0.00021781,2]
[336460853,1724849443992,-17767.14295109,0.00021786,5]
[336460854,1724849444004,-56702.76170876,0.00021787,3]
[336460867,1724850445283,-300.0,0.00011237,2]
[336460868,1724850445305,-549.4782399,0.00011238,2]
[336460871,1724850550160,-156.99253925,0.00010958,2]
[336460872,1724850550181,-300.0,0.00011237,2]
[336460873,1724850550204,-8496.38833193,0.00011238,2]
[336460907,1724850631770,-300.0,0.00011237,2]
[336460909,1724850631782,-2109.11318861,0.00011238,2]
[336460911,1724850631791,-357.62803517,0.00011238,2]
[336460913,1724850631801,-272.94994552,0.00011238,2]
[336460914,1724850631810,-281.57328079,0.00011238,2]
[336460916,1724850631820,-15854.13342817,0.00011238,2]
[336460918,1724850631831,-24950.17899331,0.00011842,2]
[336460920,1724850631840,-8852.09163784,0.00011842,2]
[336460922,1724850631850,-250.0,0.00011917,2]
[336460923,1724850631859,-250.0,0.0001195,2]
[336460925,1724850631869,-250.0,0.00011983,2]
[336460928,1724850631879,-250.0,0.00012015,2]
[336460931,1724850631889,-250.0,0.00012048,2]
[336460934,1724850631898,-726.58781012,0.00012076,2]
[336460937,1724850631907,-250.0,0.00012081,2]
[336460939,1724850631916,-250.0,0.00012113,2]
[336460941,1724850631926,-250.0,0.00012146,2]
[336460943,1724850631935,-250.0,0.00012179,2]
[336460945,1724850631945,-250.0,0.00012212,2]
[336460948,1724850631959,-250.0,0.00012244,2]
[336460950,1724850631969,-250.0,0.00012277,2]
[336460952,1724850631979,-250.0,0.0001231,2]
[336460954,1724850631989,-250.0,0.00012342,2]
[336460956,1724850631998,-339.0,0.00012361,2]
[336460958,1724850632008,-250.0,0.00012375,2]
[336460960,1724850632019,-250.0,0.00012408,2]
[336460962,1724850632029,-250.0,0.0001244,2]
[336460964,1724850632038,-250.0,0.00012473,2]
[336460966,1724850632048,-250.0,0.00012506,2]
[336460968,1724850632059,-2999.17623735,0.00012516,2]
[336460970,1724850632069,-250.0,0.00012538,2]
[336460973,1724850632079,-1027.25939524,0.00012779,2]
[336460975,1724850632090,-1780.69207018,0.00012779,3]
[336460976,1724850632099,-154.98168515,0.00012886,2]
[336460978,1724850632110,-340.77934952,0.00012886,2]
[336460982,1724850632131,-325.29665361,0.00012886,2]
[336460983,1724850632142,-410.72334639,0.00012886,2]
[336460986,1724850632154,-159.36044754,0.00012886,2]
[336460988,1724850632164,-210.47717291,0.00012898,2]
[336460990,1724850632173,-64.59177325,0.000129,2]
[336460992,1724850632185,-2176.25113245,0.000129,2]
[336460994,1724850632195,-777.0011055,0.00012934,2]
[336460996,1724850632204,-305.56946804,0.00012934,2]
[336460997,1724850632214,-174.99644935,0.00012934,2]
[336460998,1724850632224,-493.77204427,0.00012971,2]
[336460999,1724850632236,-242.93742619,0.00012971,2]
[336461000,1724850632247,-246.09789955,0.00012985,2]
[336461001,1724850632257,-271.77314275,0.00012985,2]
[336461002,1724850632267,-366.68848046,0.00012989,2]
[336461003,1724850632277,-155.06390022,0.00012999,2]
[336461004,1724850632287,-253.11762544,0.00012999,2]
[336461005,1724850632296,-863.27824545,0.00013,2]
[336461006,1724850632306,-154.66746495,0.00013025,2]
[336461007,1724850632317,-154.66746495,0.00013025,2]
[336461008,1724850632327,-156.15686865,0.00013025,2]
[336461009,1724850632336,-207.3478485,0.00013025,2]
[336461010,1724850632347,-2129.87511377,0.00013051,2]
[336461011,1724850632356,-366.68045916,0.00013051,2]
[336461013,1724850632366,-154.97264958,0.00013051,2]
[336461014,1724850632377,-296.13258418,0.00013051,2]
[336461016,1724850632387,-221.61931263,0.00013287,2]
[336461064,1724850637981,-4826.6803154,0.00010737,2]
[336461066,1724850637991,-420.7751596,0.00010823,2]
[336461068,1724850638001,-378.38068737,0.00013287,2]
[336461070,1724850638012,-751.97281741,0.00013288,2]
[336461072,1724850638026,-160.50654328,0.00013333,2]
[336461074,1724850638037,-252.39906694,0.00013333,2]
[336461076,1724850638048,-254.84954226,0.00013477,2]
[336461077,1724850638058,-1730.9653785,0.00013477,2]
[336461078,1724850638068,-1400.43421124,0.00013497,2]
[336461079,1724850638078,-729.39083996,0.00013497,2]
[336461080,1724850638087,-1767.66648832,0.00013596,2]
[336461081,1724850638097,-899.54550214,0.00013596,2]
[336461082,1724850638107,-521.86780136,0.00013599,2]
[336461083,1724850638116,-11646.02554139,0.00013599,2]
[336461084,1724850638126,-500.83878289,0.00013599,2]
[336461085,1724850638136,-156.99253925,0.00013622,2]
[336461086,1724850638146,-156.99253925,0.00013622,2]
[336461087,1724850638156,-812.05632668,0.00013622,2]
[336461088,1724850638165,-65905.7947318,0.00013678,2]
[336461089,1724850638177,-882.90111816,0.00013678,2]
[336461090,1724850638189,-662.732602,0.00013678,2]
[336461123,1724850642704,-416.73774875,0.00013333,2]
[336461125,1724850642714,-59726.90186004,0.00013678,2]
[336461127,1724850642724,-216.03856293,0.00013688,2]
[336461128,1724850642735,-947.018531,0.00013688,2]
[336461130,1724850642745,-811.78467002,0.00013697,2]
[336461131,1724850642755,-500.0,0.00013698,2]
[336461133,1724850642765,-240.36584317,0.00013698,2]
[336461134,1724850642775,-500.0,0.00013698,2]
[336461135,1724850642784,-500.0,0.00013698,2]
[336461137,1724850642794,-500.0,0.00013698,2]
[336461138,1724850642804,-243.79363614,0.00013698,2]
[336461139,1724850642813,-500.0,0.00013698,2]
[336461141,1724850642822,-500.0,0.00013698,2]
[336461143,1724850642832,-500.0,0.00013698,2]
[336461145,1724850642842,-500.0,0.00013698,2]
[336461146,1724850642851,-500.0,0.00013698,2]
[336461148,1724850642861,-404.8069796,0.00013698,2]
[336461151,1724850642871,-308.87016453,0.00013698,2]
[336461153,1724850642881,-241.089158,0.00013699,2]
[336461155,1724850642890,-3000.0,0.00013699,2]
[336461158,1724850642900,-168.804,0.0001405,2]
[336461160,1724850642911,-168.804,0.0001405,2]
[336461162,1724850642921,-750.0,0.00014247,2]
[336461163,1724850642931,-500.0,0.00014315,2]
[336461165,1724850642940,-17767.14295109,0.00014498,5]
[336461167,1724850642950,-292.21307805,0.00014498,5]
[336461168,1724850642960,-254356.660624,0.00014499,2]
[336461170,1724850642969,-500.0,0.00015069,2]
[336461171,1724850642979,-500.0,0.00015069,2]
[336461172,1724850642988,-18560.74795338,0.00015812,2]
[336461174,1724850643025,-10537.90071409,0.00015812,2]
[336461175,1724850643036,-2764.59999993,0.00015812,2]
[336461181,1724850643177,-3991.91373423,0.00015812,2]
[336461183,1724850643430,-85807.53781901,0.00015812,2]
[336461250,1724851629125,-164.44985274,0.0001,2]
[336461251,1724851640188,-412.57679323,0.0001,2]
[336461269,1724851838180,-1075.70566643,0.0001,2]
[336461270,1724851838191,-287.83826275,0.00011894,2]
[336461271,1724851838201,-1500.27273133,0.00011987,2]
[336461272,1724851838211,-2687.81799004,0.00012516,2]
[336461273,1724851838222,-366.20802358,0.000129,2]
[336461274,1724851838233,-186.73280361,0.00012934,2]
[336461275,1724851838244,-159.86615464,0.00012934,2]
[336461276,1724851838253,-200.66609129,0.00012934,2]
[336461277,1724851838263,-300.0,0.0001297,2]
[336461278,1724851838272,-493.77204427,0.00012971,2]
[336461279,1724851838281,-155.03734822,0.00012971,2]
[336461280,1724851838290,-617.9496509,0.00012985,2]
[336461281,1724851838299,-156.90029869,0.00012991,2]
[336461282,1724851838309,-863.27824545,0.00013,2]
[336461283,1724851838322,-535.14566405,0.00013497,2]
[336461284,1724851838332,-254.24615238,0.00013596,2]
[336461285,1724851838342,-177.552,0.00014025,2]
[336461286,1724851838352,-3000.0,0.00014113,2]
[336461287,1724851838362,-513.69602662,0.00014145,2]
[336461288,1724851838372,-750.0,0.00014247,2]
[336461289,1724851838386,-158.725147,0.00014704,2]
[336461290,1724851838395,-158.725147,0.00014768,2]
[336461291,1724851838405,-158.725147,0.00014832,2]
[336461292,1724851838415,-158.725147,0.00014895,2]
[336461293,1724851838424,-158.725147,0.00014959,2]
[336461294,1724851838434,-158.725147,0.00015023,2]
[336461295,1724851838443,-158.725147,0.00015087,2]
[336461296,1724851838453,-158.725147,0.00015151,2]
[336461297,1724851838462,-158.725147,0.00015215,2]
[336461298,1724851838472,-158.725147,0.00015279,2]
[336461299,1724851838481,-158.725147,0.00015342,2]
[336461300,1724851838491,-4506.60630401,0.00015352,2]
[336461301,1724851838500,-158.725147,0.00015406,2]
[336461302,1724851838508,-158.725147,0.0001547,2]
[336461303,1724851838518,-309.27320796,0.00015812,2]
[336461304,1724851838528,-500.0,0.00015822,2]
[336461305,1724851838538,-1126.2,0.00016,30]
[336461306,1724851838548,-2315.262899,0.00016104,2]
[336461307,1724851838557,-1200.9249565,0.00016477,2]
[336461308,1724851838567,-500.0,0.00016613,2]
[336461309,1724851838577,-500.0,0.00018512,2]
[336461310,1724851838587,-500.0,0.00018652,2]
[336461311,1724851838598,-9447.48264985,0.00018771,2]
[336461312,1724851838608,-457.896167,0.00018904,2]
[336461313,1724851838617,-500.0,0.00018966,2]
[336461314,1724851838627,-1684.35486645,0.00019,2]
[336461315,1724851838638,-1960.73754247,0.00019078,2]
[336461316,1724851838650,-500.0,0.00019161,2]
[336461317,1724851838659,-1863.7007515,0.00019166,2]
[336461318,1724851838672,-199.300395,0.00019178,2]
[336461319,1724851838681,-251.0,0.00019178,2]
[336461320,1724851838691,-500.0,0.00019204,2]
[336461321,1724851838701,-500.0,0.0001933,2]
[336461322,1724851838711,-306.0,0.00019342,2]
[336461323,1724851838720,-153.0,0.00019342,2]
[336461324,1724851838731,-153.0,0.00019342,2]
[336461325,1724851838740,-153.0,0.00019342,2]
[336461326,1724851838751,-153.0,0.00019342,2]
[336461327,1724851838761,-153.0,0.00019342,2]
[336461328,1724851838771,-306.0,0.00019342,2]
[336461329,1724851838780,-153.0,0.00019342,2]
[336461330,1724851838790,-153.0,0.00019342,2]
[336461331,1724851838799,-409.4159754,0.00019452,2]
[336461332,1724851838808,-409.4159754,0.00019452,2]
[336461333,1724851838818,-500.0,0.00019471,2]
[336461334,1724851838828,-150.112234,0.000195,2]
[336461335,1724851838838,-150.0,0.00019506,2]
[336461336,1724851838847,-522.0,0.00019506,2]
[336461337,1724851838857,-500.0,0.00019531,2]
[336461338,1724851838867,-500.0,0.00019684,2]
[336461339,1724851838876,-500.0,0.00019794,2]
[336461340,1724851838885,-500.0,0.00019856,2]
[336461341,1724851838895,-20806.3048966,0.00019977,2]
[336461342,1724851838905,-300.81455507,0.0002,2]
[336461343,1724851838917,-2018.43640164,0.0002,2]
[336461344,1724851838926,-503.99212142,0.0002,2]
[336461345,1724851838935,-500.0,0.0002,2]
[336461346,1724851838945,-153.0,0.00020164,2]
[336461347,1724851838956,-409.4159754,0.00020274,2]
[336461348,1724851838966,-184.2915671,0.00020274,2]
[336461349,1724851838975,-153.0,0.00020274,2]
[336461350,1724851838985,-150.112233,0.000203,5]
[336461351,1724851838994,-209.4109938,0.00020364,2]
[336461352,1724851839004,-153.0,0.00020364,2]
[336461353,1724851839013,-409.4159754,0.00020364,2]
[336461354,1724851839023,-340.08953703,0.00020364,2]
[336461355,1724851839048,-189.84296157,0.00020364,2]
[336461356,1724851839059,-409.4159754,0.00020364,2]
[336461357,1724851839069,-409.4159754,0.00020364,2]
[336461358,1724851839079,-409.4159754,0.00020364,2]
[336461359,1724851839089,-409.4159754,0.00020364,2]
[336461360,1724851839099,-409.4159754,0.00020364,2]
[336461361,1724851839110,-409.4159754,0.00020364,2]
[336461362,1724851839122,-409.4159754,0.00020364,2]
[336461363,1724851839133,-1000.0,0.00020548,2]
[336461364,1724851839143,-558.59903541,0.00020707,2]
[336461365,1724851839163,-191.40096459,0.00020707,2]
[336461366,1724851839173,-500.0,0.00020763,2]
[336461367,1724851839184,-500.0,0.00020782,2]
[336461368,1724851839194,-500.0,0.00020825,2]
[336461369,1724851839204,-835.87990463,0.00020894,2]
[336461370,1724851839214,-150.112233,0.00021,2]
[336461371,1724851839224,-150.0,0.00021,2]
[336461372,1724851839235,-1000.0,0.00021,21]
[336461373,1724851839245,-168.25609022,0.00021089,2]
[336461374,1724851839255,-500.0,0.00021089,2]
[336461375,1724851839264,-320.6555453,0.00021089,2]
[336461376,1724851839275,-500.0,0.00021089,2]
[336461377,1724851839284,-500.0,0.00021089,2]
[336461378,1724851839293,-500.0,0.00021089,2]
[336461379,1724851839302,-500.0,0.00021089,2]
[336461380,1724851839312,-500.0,0.00021089,2]
[336461381,1724851839321,-10000.0,0.0002109,2]
[336461382,1724851839331,-500.0,0.00021387,2]
[336461383,1724851839340,-2000.0,0.00021477,2]
[336461384,1724851839349,-1710.44712508,0.00021485,2]
[336461385,1724851839359,-150.112233,0.000215,3]
[336461386,1724851839368,-8673.3911989,0.00021567,3]
[336463573,1724852827234,-155.24629628,8.861e-05,2]
[336463574,1724852827257,-270.29097303,9.899e-05,7]
[336463575,1724852827281,-175.65798815,0.00012999,2]
[336463576,1724852827560,-863.27824545,0.00013,2]
[336463577,1724852827593,-535.23487752,0.00013792,2]
[336463578,1724852827617,-182.1093141,0.00013885,2]
[336463579,1724852827642,-166.86345988,0.00013971,4]
[336463580,1724852827668,-776.4132336,0.00014221,2]
[336463581,1724852835107,-306.98992311,0.00014221,2]
[336463630,1724853032195,-306.81756136,0.00013971,2]
[336463633,1724853032206,-300.0,0.0001422,2]
[336463635,1724853032216,-4684.75107999,0.00014221,2]
[336463637,1724853032226,-2113.86035463,0.00014221,2]
[336463638,1724853032236,-3304.42487159,0.00014221,2]
[336463684,1724853038518,-1371.40881746,0.00014221,2]
[336463817,1724853043301,-42.93385106,0.00014221,2]
[336463818,1724853043321,-218.41668567,0.00014221,2]
[336463819,1724853043331,-534.323549,0.00014247,2]
[336463820,1724853043340,-675.0,0.00014247,2]
[336463821,1724853043350,-205.211936,0.00015569,2]
[336463822,1724853043360,-817.89992682,0.0001684,2]
[336463869,1724853114882,500.0,0.000215,120]
[336463870,1724853317878,1000.0,0.000217,120]
[336463871,1724853500724,10000.0,8e-05,2]
[336463872,1724854026103,-321.01833301,0.00013051,2]
[336463873,1724854026124,-205.211937,0.00013968,2]
[336463874,1724854026147,-323.24796989,0.00014247,2]
[336463875,1724854037106,-184.35940111,0.00014247,2]
[336463876,1724854037130,-128.15003769,0.00014247,2]
[336463877,1724854040148,-254.12158803,9.697e-05,2]
[336463878,1724854040171,-513.09996231,0.00014247,2]
[336463879,1724854040194,-810.41752457,0.00014629,2]
[336463906,1724854232403,-369.24289293,0.00014629,2]
[336463908,1724854232413,-65.91017529,0.00014669,2]
[336463914,1724854232483,-2934.08982471,0.00014669,2]
[336463916,1724854232493,-182.109308,0.00015095,2]
[336463918,1724854232508,-182.109308,0.00015882,2]
[336463920,1724854232518,-300.0,0.00015999,2]
[336463922,1724854232528,-9305.80471808,0.00016,2]
[336463924,1724854232540,-1996.50595892,0.00016,2]
[336463926,1724854232551,-1207.85078139,0.00016575,2]
[336464033,1724854238730,-176.43822441,0.00014245,2]
[336464034,1724854238742,-4091.01314833,0.00016575,2]
[336464035,1724854238751,-1715.64534967,0.00016925,2]
[336464036,1724854238762,-292.21307804,0.00016973,5]
[336464037,1724854238772,-20806.3048966,0.00016974,2]
[336464038,1724854238782,-420.0,0.00017599,2]
[336464039,1724854238792,-347.38815689,0.00018614,2]
[336464040,1724854238975,-152.61184311,0.00018614,2]
[336464041,1724854238984,-500.0,0.00018758,2]
[336464042,1724854238994,-435.001359,0.00018904,2]
[336464043,1724854239004,-500.0,0.00018951,2]
[336464044,1724854239013,-10348.85088979,0.00019177,2]
[336464045,1724854239023,-189.335375,0.00019178,2]
[336464046,1724854239033,-251.0,0.00019178,2]
[336464047,1724854239043,-500.0,0.00019286,2]
[336464048,1724854239053,-180.0,0.00019359,2]
[336464049,1724854239063,-500.0,0.00019488,2]
[336464050,1724854239073,-500.0,0.00019624,2]
[336464051,1724854239083,-306.0,0.00019652,2]
[336464052,1724854239093,-150.145,0.00019665,2]
[336464053,1724854239103,-150.0,0.00019665,2]
[336464054,1724854239112,-522.0,0.00019665,2]
[336464055,1724854239122,-500.0,0.00019938,2]
[336464056,1724854239132,-177.13578588,0.00019974,2]
[336464057,1724854239142,-156.72438319,0.0002,2]
[336464058,1724854239152,-43080.60507784,0.0002,2]
[336464059,1724854239164,-2300.67850406,0.0002,2]
[336464083,1724854240759,-1200.1068144,0.00019177,2]
[336464111,1724854243539,-385.00279387,0.00019177,2]
[336464123,1724854243643,-8763.74128152,0.00019177,2]
[336464125,1724854243653,-59669.08718889,0.0002,2]
[336464127,1724854243663,-503.94183302,0.0002,2]
[336464129,1724854243672,-503.94183302,0.000202,2]
[336464131,1724854243687,-500.0,0.00020246,2]
[336464133,1724854243698,-500.0,0.00020323,2]
[336464135,1724854243707,-503.94183302,0.000204,2]
[336464137,1724854243716,-500.0,0.00020557,2]
[336464139,1724854243727,-465.00326584,0.00020585,2]
[336464141,1724854243736,-503.94183302,0.000206,2]
[336464143,1724854243745,-507.607371,0.00020707,2]
[336464145,1724854243755,-641.25,0.00020707,2]
[336464147,1724854243765,-503.94183302,0.000208,2]
[336464149,1724854243775,-500.0,0.00020816,2]
[336464151,1724854243785,-500.0,0.00020904,2]
[336464153,1724854243795,-2000.0,0.0002093,2]
[336464155,1724854243806,-500.0,0.00020937,2]
[336464157,1724854243816,-324.4588817,0.00020937,2]
[336464159,1724854243826,-500.0,0.00020937,2]
[336464161,1724854243840,-500.0,0.00020937,2]
[336464163,1724854243849,-500.0,0.00020937,2]
[336464165,1724854243859,-44813.13629561,0.00020938,3]
[336464167,1724854243871,-369.06255427,0.00020938,3]
[336464169,1724854243882,-471.00416308,0.00020938,3]
[336464439,1724854246662,-1760.4214713,0.00020938,3]
[336464441,1724854246674,-2037.35885071,0.00020938,3]
[336464444,1724854246694,-2135.67124547,0.00020938,3]
[336464447,1724854246713,-158560.29085956,0.00020938,3]
[336464449,1724854246722,-88888.0,0.00020948,3]
[336464451,1724854246732,-1543.54971852,0.0002095,2]
[336464453,1724854246743,-71234.59253915,0.00020987,3]
[336464874,1724854952305,5538.87770721,0.00025,120]
[336464886,1724855225164,-402.57005779,0.00012163,2]
[336464888,1724855248141,-7682.47813237,0.00012163,2]
[336464889,1724855248174,-681.33342664,0.00012779,2]
[336464891,1724855305760,150.0,0.00025,120]
[336464892,1724855352128,-4377.81844344,0.0001,2]
[336464913,1724855432707,-2402.98100801,0.0001,2]
[336464914,1724855432717,-1028.4227968,0.0001,2]
[336464916,1724855432727,-1374.09364728,0.0001,2]
[336464917,1724855432737,-2369.76253778,0.0001,2]